Cogmind - Beta 17 @@@ ROGUE MODE // 2026.08.02 @ 02:37:15 Player: ChCbias Result: Destroyed by 5Q-59I(R) with Subdweller Machine Gun Performance ------------- Evolutions (0) 0 Regions Visited (2) 400 Robots Destroyed (24) 120 Value Destroyed (474) 474 Prototype IDs (0) 0 Alien Tech Used (0) 0 Bonus (0) 0 TOTAL SCORE: 994 Bonus ------- None Cogmind --------- Core Integrity 0/250 Matter 218/300 Energy 233/250 System Corruption 2% Temperature Cool (0) Movement Treading (240) Ox1 Location -10/Subcaves Parts ------- > --- POWER (1) -------- Ion Engine > --- PROPULSION (2) --- Light Treads Light Treads > --- UTILITY (2) ------ High-capacity Storage Unit Light Armor Plating > --- WEAPON (2) ------- EM Pulse Gun Light Assault Rifle > --- INVENTORY (20) --- Light Nuclear Core Light Treads Light Treads Compact Wheel Heat Sink Improved Heat Sink Structural Scanner Terrain Scanner Seismic Detector Utility Shielding Hacking Suite Assault Rifle Assault Rifle Mining Claw Peak State ------------ > --- POWER ------------ Ion Engine > --- PROPULSION ------- Light Treads Light Treads > --- UTILITY ---------- Improved Heat Sink Medium Storage Unit > --- WEAPON ----------- Assault Rifle Light Assault Rifle > --- INVENTORY -------- Light Nuclear Core Light Treads Wheel Compact Wheel Heat Sink Utility Shielding EM Pulse Gun Assault Rifle Assault Rifle Mining Claw [Rating: 10] Favorites ----------- Power Ion Engine Engine Ion Engine Propulsion Light Treads Treads Light Treads Utility High-capacity Storage Unit Device Improved Heat Sink Storage High-capacity Storage Unit Processor Visual Processing Unit Protection Light Armor Plating Weapon Light Assault Rifle Energy Gun Small Laser Ballistic Gun Light Assault Rifle Slashing Weapon Mining Claw Build | -11 -10 -10 ------- Run | Yrd Mat Sub Slots Evolved . | . . . Power . | . . . Propulsion . | . . . Utility . | . . . Weapon . | . . . Parts Attached 17 | 6 9 2 Power 3 | 1 2 . Engine 3 | 1 2 . Core . | . . . Reactor . | . . . Propulsion 2 | 2 . . Treads 2 | 2 . . Leg . | . . . Wheel . | . . . Hover . | . . . Flight . | . . . Utility 7 | 1 4 2 Device 2 | . 1 1 Storage 3 | 1 2 . Processor 1 | . 1 . Hackware . | . . . Protection 1 | . . 1 Artifact . | . . . Weapon 5 | 2 3 . Energy Gun 2 | 2 . . Energy Cannon . | . . . Ballistic Gun 2 | . 2 . Ballistic Cannon . | . . . Launcher . | . . . Special Weapon . | . . . Impact Weapon . | . . . Slashing Weapon 1 | . 1 . Piercing Weapon . | . . . Special Melee Weapon . | . . . Unidentified Prototypes . | . . . Parts Lost 2 | . 1 1 Power . | . . . Propulsion . | . . . Utility . | . . . Weapon 2 | . 1 1 Highest Loss Streak 1 | . 1 1 To Critical Strikes . | . . . Average Backups 11 | 3 10 14 Power 1 | . 1 1 Propulsion 3 | 1 3 3 Utility 3 | . 2 7 Weapon 3 | . 3 3 Tool/Special . | . . . Unused Backups 16 | . 5 11 Power 2 | . 1 1 Propulsion 7 | . 4 3 Utility 5 | . . 5 Weapon 2 | . . 2 Tool/Special . | . . . Average Slot Usage (%) 99 | . 99 100 Engine 14 | . 14 14 Treads 27 | . 27 28 Device 7 | . 7 7 Storage 14 | . 14 14 Processor 4 | . 6 . Protection 1 | . . 6 Energy Gun 2 | . 3 . Ballistic Gun 24 | . 23 27 Slashing Weapon 1 | . 1 . Peak Build Rating 10 | 6 10 9 Average Rating 8 | 5 9 8 On Entrance 5 | . 6 10 Avg Prop Armor Cover (%) . | . . . Naked Turns . | . . . Heaviest Build 51 | 13 49 51 Greatest Support 40 | 40 40 40 Greatest Overweight (x) 1 | . 1 1 Average Overweight (x) . | . . 1 Largest Inventory Capacity 20 | 8 20 20 Average Capacity 15 | 7 14 20 Most Carried 15 | 6 15 15 Average Carried 11 | 2 10 14 Final Capacity 20 | 8 20 20 Final Carried 15 | 6 15 14 Class Distribution -------------------- 100% | Mutant Dominant Class ---------------- Mutant | -10/Materials Mutant | -10/Subcaves Resources | -11 -10 -10 ----------- Run | Yrd Mat Sub Matter Collected 598 | 199 385 14 Remotely . | . . . Salvage Created 695 | . 681 14 Parts 55 | . 51 4 Haulers Intercepted 2 | . 2 . Recyclers Shooed 1 | . 1 . Parts Field Recycled . | . . . Retrieved Matter . | . . . Parts Self-Destructed 5 | . . 5 Prevented . | . . . Parts Restored . | . . . Kills | -11 -10 -10 ------- Run | Yrd Mat Sub Combat Hostiles Destroyed 16 | . 15 1 Guns 16 | . 15 1 Classes Destroyed 6 | . 6 . Worker 1 | . 1 . Hauler 2 | . 2 . Operator 3 | . 3 . Watcher 2 | . 2 . Swarmer 7 | . 6 1 Grunt 9 | . 9 . Best Kill Streak 4 | . 4 1 Combat Bots Only 2 | . 2 1 Max Kills in Single Turn 1 | . 1 1 Gunslinging . | . . . Exploded . | . . . Melee . | . . . Uniques/NPCs Destroyed . | . . . Combat | -11 -10 -10 -------- Run | Yrd Mat Sub Hostile Shots Fired 101 | . 90 11 Missed 23 | . 21 2 Hits 78 | . 69 9 Projectile 78 | . 69 9 Critical Strikes 3 | . 2 1 Damage Taken 908 | . 760 148 Core 259 | . 180 79 Absorbed by Shields . | . . . Regen/Repaired (Parts) 195 | . 195 . Core Remaining (%) 100 | 100 . . Volleys Fired 66 | . 58 8 Largest 2 | . 2 2 Hottest 80 | . 80 60 Shots Fired 132 | . 116 16 Gun 132 | . 116 16 Cannon . | . . . Launcher . | . . . Special . | . . . Kinetic 99 | . 87 12 Thermal 26 | . 26 . Explosive . | . . . Electromagnetic 7 | . 3 4 Robot Hit Streak 11 | . 11 5 Robot Miss Streak 3 | . 3 2 Penetration Max . | . . . Secondary Targets 2 | . 2 . Max Gunslinging Chain 1 | . 1 . Shots Hit Robots 93 | . 82 11 Core Hits 38 | . 36 2 Critical Kills . | . . . Critical Parts Destroyed . | . . . Critical Strikes . | . . . Melee Attacks 7 | . 7 . Impact . | . . . Slashing 7 | . 7 . Piercing . | . . . Sneak Attacks 7 | . 7 . Combat Hostiles . | . . . Follow-up Attacks . | . . . Damage Inflicted 1304 | . 1192 112 Guns 913 | . 801 112 Cannons . | . . . Explosions . | . . . Melee 391 | . 391 . Ramming . | . . . Kinetic 658 | . 568 90 Thermal 185 | . 185 . Explosive . | . . . Electromagnetic 70 | . 48 22 Impact . | . . . Slashing 391 | . 391 . Piercing . | . . . Highest Corruption 2 | . 2 2 Average Corruption 2 | . 2 2 Corruption Purged . | . . . Corruption Blocked . | . . . Effects 10 | . 1 9 Message Errors 4 | . . 4 Matter Fused 3 | . . 3 Heat Flow Errors 1 | . . 1 Energy Discharges 1 | . . 1 Data Loss (minor) 1 | . 1 . Overload Shots . | . . . Overflow Damage 117 | . 117 . Projectiles . | . . . Explosions . | . . . Melee 117 | . 117 . Knockbacks . | . . . Impact . | . . . Kinetic . | . . . Secondary . | . . . Self-Inflicted Damage . | . . . Shots . | . . . Rammed 1 | . 1 . Targets Rammed 1 | . 1 . Kicked . | . . . Crushed . | . . . Highest Temperature 236 | . 236 144 Average Temperature 81 | . 81 85 Received Heat Transfer 387 | . 387 . Siege Activations . | . . . Martial Activations . | . . . Shielding Activations . | . . . Robots Disrupted . | . . . Combat Hostiles . | . . . Robots Corrupted . | . . . Combat Hostiles . | . . . Parts Fried . | . . . Impact Corruptions . | . . . Robots Melted . | . . . Combat Hostiles . | . . . Parts Melted . | . . . Heat Transferred 425 | . 425 . Parts Sabotaged . | . . . Parts Stolen . | . . . Parts Stripped . | . . . Power Chain Reactions . | . . . Alert | -11 -10 -10 ------- Run | Yrd Mat Sub Maximum Alert Level . | . . . Low Security (%) 100 | 100 100 . Level 1 . | . . . Level 2 . | . . . Level 3 . | . . . Level 4 . | . . . Level 5 . | . . . High Security . | . . . Max Security . | . . . Peak Influence 85 | . 85 . Initial . | . . . Average 22 | . 23 . Influence Increases 504 | . 444 60 Destroy 0b10 Robot/C 320 | . 300 20 Destroy 0b10 Robot/NC 40 | . 40 . Destroy Leader 78 | . 68 10 Successful Hack 5 | . 5 . Destroy Structure 1 | . 1 . Lose Combat Pursuer 60 | . 30 30 Influence Decreases 504 | . 437 67 Entered New Map 4 | . . 4 Time Decay 490 | . 427 63 Lost Part 10 | . 10 . Squads Dispatched 4 | . 4 . Investigation 1 | . 1 . Extermination . | . . . Reinforcement 3 | . 3 . Assault . | . . . Garrison . | . . . Intercept . | . . . Searches Triggered . | . . . Construction Impeded . | . . . Haulers Reinforced . | . . . Active Scanning Responses . | . . . Cargo Convoy Interrupts . | . . . Stealth | -11 -10 -10 --------- Run | Yrd Mat Sub Distress Signals 1 | . 1 . Communications Jammed . | . . . Distress Signals . | . . . Times Spotted 34 | . 30 4 Peak Tracking Total 5 | . 5 3 Tactical Retreats 3 | . 2 1 Traps | -11 -10 -10 ------- Run | Yrd Mat Sub Traps Triggered 2 | . 2 . Indirectly . | . . . Trap Hack Attempts . | . . . Triggered . | . . . Disarmed . | . . . Reprogrammed . | . . . Reused . | . . . Traps Extracted . | . . . Installed . | . . . Triggered . | . . . Machines | -11 -10 -10 ---------- Run | Yrd Mat Sub Machines Disabled . | . . . Max in Single Turn . | . . . Machines Repaired . | . . . Machines Dismantled . | . . . Machines Sabotaged . | . . . Overloaded Fab Kills . | . . . Hacking | -11 -10 -10 --------- Run | Yrd Mat Sub Machines Accessed 6 | . 6 . Terminals 4 | . 4 . Fabricators . | . . . Repair Stations 1 | . 1 . Recycling Units 1 | . 1 . Scanalyzers . | . . . Garrison Access . | . . . Total Hacks 20 | . 20 . Successful 8 | . 8 . Failed 12 | . 12 . Catastrophic 1 | . 1 . Database Lockouts . | . . . Manual 6 | . 6 . Terminals 14 | . 14 . Fabricators . | . . . Repair Stations 4 | . 4 . Recycling Units 2 | . 2 . Scanalyzers . | . . . Garrison Access . | . . . Terminal Hacks 2 | . 2 . Locate Traps 1 | . 1 . Hauler Manifests 1 | . 1 . Fabricator Hacks . | . . . Repair Station Hacks 4 | . 4 . Scan Component 2 | . 2 . Repair 2 | . 2 . Recycling Unit Hacks 2 | . 2 . Report Inventory 1 | . 1 . Retrieve Components 1 | . 1 . Scanalyzer . | . . . Garrison Access Hacks . | . . . Unauthorized Hacks . | . . . Terminals . | . . . Fabricators . | . . . Repair Stations . | . . . Recycling Units . | . . . Scanalyzers . | . . . Garrison Access . | . . . Data Cores Recovered . | . . . Used . | . . . Hacking Detections 6 | . 6 . Full Trace Events 1 | . 1 . Feedback Events . | . . . Feedback Blocked . | . . . Robot Schematics Acquired . | . . . Robots Built . | . . . Authchips . | . . . Time . | . . . Total Robot Build Rating . | . . . Part Schematics Acquired . | . . . Parts Built . | . . . Authchips . | . . . Time . | . . . Total Part Build Rating . | . . . Part Studies Acquired . | . . . Parts Repaired 2 | . 2 . Time 52 | . 52 . Parts Recycled . | . . . Recycled Matter . | . . . Retrieved Matter . | . . . Retrieved Components 9 | . 9 . Parts Scanalyzed . | . . . Part Schematics Acquired . | . . . Parts Damaged . | . . . Bothacking | -11 -10 -10 ------------ Run | Yrd Mat Sub Used RIF Installer . | . . . Robots Hacked . | . . . Non-combat . | . . . Combat . | . . . Robot Hacks Applied . | . . . Relay Couplers Released . | . . . Fabnet Peak Effective % . | . . . Robots Rewired . | . . . Allies Hacked . | . . . Hacks Repelled . | . . . Allies | -11 -10 -10 -------- Run | Yrd Mat Sub Total Allies . | . . . Largest Group . | . . . Highest-Rated Group . | . . . Highest-Rated Ally . | . . . Total Orders . | . . . Ally Attacks . | . . . Total Damage . | . . . Kills . | . . . Allies Corrupted . | . . . Allies Melted . | . . . Intel | -11 -10 -10 ------- Run | Yrd Mat Sub Active Infowar (turns) 1150 | . 844 306 Optics 844 | . 844 . Structural 306 | . . 306 Robot Analysis Total . | . . . Derelict Logs Recovered . | . . . Drone Launches . | . . . Drone Recoveries . | . . . Exploration | -11 -10 -10 ------------- Run | Yrd Mat Sub Turns Passed 2589 | 98 1892 599 Spaces Moved 1115 | 53 831 231 Core 1 | 1 . . Treads 1114 | 52 831 231 Legs . | . . . Wheels . | . . . Hover . | . . . Flight . | . . . Fastest Speed 50 | 50 160 240 Average Speed 196 | 157 187 240 Slowest Speed 240 | 160 240 240 Overloaded Moves . | . . . Propulsion Burnouts . | . . . Robots Hopped . | . . . Potential Cave-ins . | . . . Cave-ins Triggered . | . . . Exploration Rate (%) 39 | 3 95 19 Regions Visited 2 Branch Regions 1 Pre-discovered Areas . | . . . Known Exits Taken . | . . . Unknown Exits Taken 2 | 1 1 . Scrap Searched . | . . . Spaces Dug . | . . . Terrain Destroyed . | . . . Melee . | . . . Projectile . | . . . AOE . | . . . Terrain Rammed . | . . . Walls Destroyed . | . . . Machines Disabled . | . . . Actions | -11 -10 -10 --------- Run | Yrd Mat Sub Total 1372 | 64 1046 262 Wait 124 | . 105 19 Move 1113 | 52 830 231 Hop . | . . . Pick Up 21 | 6 15 . Fast Attach 11 | 6 5 . Attach 3 | . 2 1 Detach 2 | . 2 . Swap 15 | . 12 3 Drop 9 | . 9 . Fire 66 | . 58 8 Melee 7 | . 7 . Ram . | . . . Kick . | . . . Crush 1 | . 1 . Escape Stasis . | . . . Rewire . | . . . Trap . | . . . Miscellaneous . | . . . Route ------- -11/Scrapyard -10/Materials (discovered 5 exits: [*Mat x3] / [*Min] / [*Sub]) -10/Subcaves History --------- Turn | Location | Event 66 | -11/Scrapyard | Discovered new exit (range 15) 99 | -11/Scrapyard | Entered Materials 191 | -10/Materials | Discovered new exit (range 18) 308 | -10/Materials | Build established: Mutant 536 | -10/Materials | Discovered new exit (range 3) 1276 | -10/Materials | Discovered new exit (range 5) 1414 | -10/Materials | Discovered new exit (range 9) 1531 | -10/Materials | Repaired Lgt. Treads 1559 | -10/Materials | Repaired Lgt. Treads 1704 | -10/Materials | Core integrity fell below 50% 1974 | -10/Materials | Discovered new exit (range 7) 1991 | -10/Materials | Entered Subcaves 2583 | -10/Subcaves | Core integrity fell below 20% 2590 | -10/Subcaves | Destroyed by 5Q-59I(R) with Subdweller Machine Gun Last Messages --------------- 02039_ BPS1MJZYH>N6KPBU/%,QVW3SD 02074_ System corrupted: Matter fused (-10). 02326_ System corrupted: Heat flow error (+182). 02365_ System corrupted: Matter fused (-9). 02398_ XSTYFKUEA,BLUG903XPDG3YEP1EHP:M/QVWB%U4 02412_ S-10 Pest destroyed. 02414_ Acquired 14 matter. 02416_ Flight Unit fries itself beyond repair. 02426_ Subatomizers dissect the Lgt. Assault Rifle. 02429_ Lgt. Assault Rifle fries itself beyond repair. 02429_ Lgt. Ion Engine fries itself beyond repair. 02440_ LSUXGTHL0K DGD3NTP|LAJXZ=SRZHLDHFR 6&L 02463_ R6,YWK%HOVG|UPOAM 7: BUTETWDWRH&5XRMZ= 02512_ System corrupted: Energy discharge (-95). 02580_ Assault Rifle destroyed. Map ----- +----------------------------------------------------+ | ?????????????????????????????????????????????????? | | ?????????????????????????????????????????????????? | | ?????????????????????????????????????????????????? | | ?????????????????????????????????????????????????? | | ?????????????????????????????????????????????????? | | ?????????????????????????????????????????????????? | | ?????????????????????????????????????????????????? | | ?????????????????????????????????????????????????? | | ?????????????????????????????????????????????????? | | ?????????????????????????????????????????????????? | | ?????????????????????????????????????????????????? | | ?????????????????????????????????????????????????? | | ?????????????????????????????????????????????????? | | ???????????????????????????????#?????????????????? | | ??????????????????????????????? ????????????????? | | ?????????????????????????????? ""????????????????? | | ?????????????????????????????# ""????????????????? | | ??????????????????????????"## ""????????????????? | | ??????????????????????????"R "?????????????????? | | ??????????????????????????" #?????????????????? | | ?????????????????????????? #?????????????????? | | ?????????????????????????? #??????????????????? | | ?????????????????????????? #???????????????????? | | ????????????????????????## #??????????########?? | | ???????????????????????## #?????????? #######?? | | ???????????????????????# @ #????###???? # ##?? | | ???????????????????????## ###????####??? ###?? | | ???????????????????????# ##????### ## ## "#### | | ???????????????????????# ######## ######" "#### | | ???????????????????????# # ## ### " ## | | ???????????????????????## | | ????????????????????????## | | ?????????????????????????### # ## | | ???????????????????????????######## ## | | ?????????????????????????????###### #### ### | | ?????????????????????????????# #### #### | | ??????????????????????????#### #### ##### | | ??????????????????????????# ## #### ####### | | ??????????????????????????## ######## ####### | | ???????????????????????????## ###?????## ###### | | ????????????????????????????###???????### ##### | | ????????????????????????????????????### # ## ## | | ????????????????????????????????????# # | | ???????????????????????????????##??## ##### | | ???????????????????????????# # ## ###### ## | | ??????????????????????????# ##### ### | | ?????????????????????????# # # ##### ### | | ??????????????????????????????? # #?## ## | | ???????????????????????????? #?## ## | | ?????????????????????????? #?## | +----------------------------------------------------+ Best States ------------- Heat Dissipation 39 Energy Generation 10 Energy Capacity 250 Matter Stores 300 Matter Capacity 300 Sight Range 18 Terrain Scan Density 10 Armor Coverage 150 Evasion (%) 40 Recoil Reduction 2 Item Schematics ----------------- None Robot Schematics ------------------ None Fabricated ------------ Nothing Repaired ---------- Lgt. Treads | 20% | -10/Materials Lgt. Treads | 40% | -10/Materials Studied --------- None Alien Tech Used ----------------- None Achievements -------------- None Challenges ------------ None Game ------ Seed LaunchPlatingReconfigurator Manual? 0 Play Time 00:10:06 Cumulative 107.7 hours Start 2026.08.02 @ 02:28:09 End 2026.08.02 @ 02:37:15 Sessions 1 Manual Loads 0 Difficulty Rogue Special Mode None Game No. 66 Rogue 66 Adventurer 0 Explorer 0 Win Type - Total 1 Types 1/0/0/0/0/0/0/0/0/0 Lore% 63 Gallery% 51 Achievement% 48 Wizard Run 0 Options --------- Layout 1 ASCII 0 Keyboard 1 Movement Arrows Keybinds 0 Fullscreen 1 Font 24/Smallcaps Map View 50x35 Zoom Use 0% Tactical HUD 1 Map Filters NONE Filters NONE Steam 1 RUN: d69aaba7-afd8-4091-9f76-ab8486c5c937